fUSD/lending_fUSD_20250807
["ID","MTS","AMOUNT","RATE_DAILY","PERIOD"]
[377849925,1754575855115,-563.29,0.00019866,2]
[377849927,1754575855128,-1137.1,0.00019866,2]
[377849930,1754575855143,-503.2,0.00019866,2]
[377849932,1754575855156,-2779.6,0.00019866,2]
[377849934,1754575855169,-1934.55,0.00019866,2]
[377849937,1754575855184,-2217.39,0.00019866,2]
[377849939,1754575855196,-1950.08,0.00019866,2]
[377849942,1754575855210,-4007.72,0.00019866,2]
[377849944,1754575855223,-500.0,0.00019866,2]
[377849946,1754575855235,-400.0,0.00019866,2]
[377849949,1754575855248,-2086.52,0.00019866,2]
[377849951,1754575855261,-1550.35,0.00019866,2]
[377849953,1754575855273,-1327.58,0.00019866,2]
[377849956,1754575855286,-1700.62,0.00019866,2]
[377849958,1754575855299,-2762.53,0.00019866,2]
[377849961,1754575855312,-400.0,0.00019866,2]
[377849963,1754575855325,-2188.14,0.00019866,2]
[377849965,1754575855338,-204.215483,0.00019866,2]
[377849967,1754575855351,-2638.71,0.00019866,2]
[377849970,1754575855365,-1670.98,0.00019866,2]
[377849972,1754575855377,-204.215483,0.00019866,2]
[377849974,1754575855391,-2778.15,0.00019866,2]
[377849977,1754575855403,-1965.4,0.00019866,2]
[377849979,1754575855415,-2737.84,0.00019866,2]
[377849981,1754575855431,-2272.16,0.00019866,2]
[377849984,1754575855449,-1482.03,0.00019866,2]
[377849986,1754575855469,-1773.546,0.00019882,2]
[377849988,1754575855481,-957.82246,0.0001989,2]
[377849991,1754575855494,-150.0,0.00019895,2]
[377849993,1754575855507,-4214.24698384,0.00019895,2]
[377849995,1754575855520,-43143.16781126,0.000199,2]
[377849998,1754575855533,-151.0,0.000199,2]
[377850000,1754575855546,-151.0,0.000199,2]
[377850002,1754575855559,-151.0,0.000199,2]
[377850005,1754575855572,-400.0,0.000199,7]
[377850007,1754575855584,-151.0,0.000199,2]
[377850009,1754575855598,-2796.14179699,0.000199,2]
[377850012,1754575855612,-211.58213282,0.00019903,2]
[377850014,1754575855624,-457.55740054,0.00019903,2]
[377850016,1754575855637,-13000.291,0.00019906,2]
[377850019,1754575855650,-6073.0,0.00019906,2]
[377850021,1754575855663,-4139.0,0.00019906,2]
[377850025,1754575855688,-1796.96861123,0.00019953,2]
[377850027,1754575855704,-643.83,0.00019962,2]
[377850030,1754575855722,-500.0,0.00019962,2]
[377850033,1754575855737,-361.52634386,0.00019962,2]
[377850036,1754575855753,-300.0,0.00019962,2]
[377850038,1754575855769,-300.0,0.00019962,2]
[377850041,1754575855783,-441.2,0.00019963,2]
[377850043,1754575855797,-449.65,0.00019963,2]
[377850046,1754575855812,-1251.25,0.00019963,2]
[377850048,1754575855827,-400.0,0.00019963,2]
[377850051,1754575855840,-400.0,0.00019963,2]
[377850053,1754575855858,-400.0,0.00019963,2]
[377850056,1754575855872,-400.0,0.00019963,2]
[377850058,1754575855887,-400.0,0.00019963,2]
[377850061,1754575855901,-992.51,0.00019963,2]
[377850063,1754575855916,-472.53,0.00019963,2]
[377850066,1754575855930,-420.0,0.00019963,2]
[377850068,1754575855944,-665.46,0.00019963,2]
[377850071,1754575855958,-443.28,0.00019963,2]
[377850073,1754575855971,-400.0,0.00019963,2]
[377850076,1754575855985,-400.0,0.00019963,2]
[377850078,1754575855999,-400.0,0.00019963,2]
[377850081,1754575856016,-400.0,0.00019963,2]
[377850083,1754575856030,-791.8,0.00019963,2]
[377850086,1754575856044,-400.0,0.00019963,2]
[377850088,1754575856058,-400.0,0.00019963,2]
[377850091,1754575856072,-1556.83,0.00019963,2]
[377850093,1754575856087,-400.0,0.00019963,2]
[377850095,1754575856101,-400.0,0.00019963,2]
[377850098,1754575856117,-601.07,0.00019963,2]
[377850100,1754575856131,-500.0,0.00019963,2]
[377850103,1754575856145,-1445.93,0.00019963,2]
[377850105,1754575856159,-400.0,0.00019963,2]
[377850108,1754575856173,-448.64,0.00019963,2]
[377850110,1754575856186,-691.07,0.00019963,2]
[377850112,1754575856199,-400.0,0.00019963,2]
[377850115,1754575856213,-1478.26,0.00019963,2]
[377850117,1754575856226,-598.95,0.00019963,2]
[377850120,1754575856239,-1062.69,0.00019963,2]
[377850121,1754575856252,-453.95,0.00019963,2]
[377850122,1754575856265,-694.94,0.00019963,2]
[377850123,1754575856278,-611.1,0.00019963,2]
[377850124,1754575856291,-400.0,0.00019963,2]
[377850125,1754575856303,-400.0,0.00019963,2]
[377850126,1754575856317,-151.21645502,0.00019963,2]
[377850127,1754575856330,-400.0,0.00019963,2]
[377850128,1754575856343,-1066.54,0.00019963,2]
[377850131,1754575856357,-400.0,0.00019963,2]
[377850133,1754575856369,-400.0,0.00019963,2]
[377850135,1754575856383,-400.0,0.00019963,2]
[377850138,1754575856395,-400.0,0.00019963,2]
[377850140,1754575856408,-422.18,0.00019963,2]
[377850142,1754575856421,-1007.34,0.00019963,2]
[377850144,1754575856433,-500.0,0.00019963,2]
[377850147,1754575856447,-599.85,0.00019963,2]
[377850149,1754575856459,-417.03,0.00019963,2]
[377850151,1754575856468,-400.0,0.00019963,2]
[377850153,1754575856478,-400.0,0.00019963,2]
[377850155,1754575856487,-408.42024867,0.00019963,2]
[377850157,1754575856496,-400.0,0.00019963,2]
[377850159,1754575856506,-400.0,0.00019963,2]
[377850161,1754575856515,-835.41,0.00019963,2]
[377850163,1754575856524,-400.0,0.00019963,2]
[377850165,1754575856533,-417.82,0.00019963,2]
[377850167,1754575856543,-400.0,0.00019963,2]
[377850169,1754575856553,-916.69,0.00019963,2]
[377850171,1754575856562,-400.0,0.00019963,2]
[377850173,1754575856571,-1208.26,0.00019963,2]
[377850175,1754575856580,-420.77,0.00019963,2]
[377850177,1754575856590,-493.72250864,0.00019963,2]
[377850179,1754575856599,-400.0,0.00019963,2]
[377850181,1754575856610,-411.39798132,0.00019963,2]
[377850183,1754575856619,-400.0,0.00019963,2]
[377850185,1754575856628,-402.90773141,0.00019963,2]
[377850187,1754575856638,-724.64,0.00019963,2]
[377850189,1754575856647,-400.0,0.00019963,2]
[377850191,1754575856656,-651.47,0.00019963,2]
[377850248,1754575856666,-400.0,0.00019963,2]
[377850255,1754575857268,-245.30746395,0.00019963,2]
[377850259,1754575857300,-1541.79,0.00019963,2]
[377850262,1754575857320,-400.0,0.00019963,2]
[377850264,1754575857330,-570.73,0.00019963,2]
[377850266,1754575857339,-811.92,0.00019963,2]
[377850268,1754575857348,-400.0,0.00019963,2]
[377850270,1754575857357,-400.0,0.00019963,2]
[377850272,1754575857367,-491.73,0.00019963,2]
[377850274,1754575857376,-718.64,0.00019963,2]
[377850276,1754575857385,-445.22,0.00019963,2]
[377850278,1754575857394,-500.0,0.00019963,2]
[377850280,1754575857403,-400.0,0.00019963,2]
[377850282,1754575857413,-426.68,0.00019963,2]
[377850284,1754575857422,-716.34,0.00019963,2]
[377850286,1754575857432,-840.2,0.00019963,2]
[377850288,1754575857442,-1555.34,0.00019963,2]
[377850290,1754575857451,-400.0,0.00019963,2]
[377850292,1754575857461,-310.624824,0.00019963,2]
[377850294,1754575857470,-941.31,0.00019963,2]
[377850296,1754575857479,-1645.21,0.00019963,2]
[377850298,1754575857488,-400.0,0.00019963,2]
[377850300,1754575857498,-400.0,0.00019963,2]
[377850302,1754575857508,-537.63,0.00019963,2]
[377850304,1754575857517,-400.0,0.00019963,2]
[377850306,1754575857526,-589.41,0.00019963,2]
[377850308,1754575857535,-572.99,0.00019963,2]
[377850310,1754575857544,-1927.32,0.00019963,2]
[377850311,1754575857554,-151.0,0.00019963,2]
[377850314,1754575857563,-443.9893663,0.00019963,2]
[377850316,1754575857573,-1462.16,0.00019963,2]
[377850318,1754575857583,-445.14,0.00019963,2]
[377850319,1754575857593,-400.0,0.00019963,2]
[377850321,1754575857602,-400.0,0.00019963,2]
[377850323,1754575857614,-400.0,0.00019963,2]
[377850326,1754575857623,-455.74,0.00019963,2]
[377850327,1754575857632,-697.32,0.00019963,2]
[377850330,1754575857642,-400.0,0.00019963,2]
[377850331,1754575857651,-400.0,0.00019963,2]
[377850332,1754575857660,-730.57,0.00019963,2]
[377850333,1754575857669,-732.61,0.00019963,2]
[377850334,1754575857678,-400.0,0.00019963,2]
[377850335,1754575857687,-467.47,0.00019963,2]
[377850336,1754575857696,-151.0,0.00019963,2]
[377850337,1754575857706,-400.0,0.00019963,2]
[377850338,1754575857715,-400.0,0.00019963,2]
[377850339,1754575857724,-400.0,0.00019963,2]
[377850340,1754575857733,-400.0,0.00019963,2]
[377850341,1754575857743,-541.83,0.00019963,2]
[377850342,1754575857752,-1849.21,0.00019963,2]
[377850343,1754575857761,-151.0,0.00019963,2]
[377850344,1754575857769,-151.0,0.00019963,2]
[377850345,1754575857779,-151.0,0.00019963,2]
[377850346,1754575857788,-400.0,0.00019963,2]
[377850347,1754575857797,-154.3503,0.00019963,2]
[377850348,1754575857819,-892.36,0.00019963,2]
[377850350,1754575857828,-400.0,0.00019963,2]
[377850352,1754575857837,-214.862165,0.00019963,2]
[377850354,1754575857848,-601.46,0.00019963,2]
[377850356,1754575857859,-400.0,0.00019963,2]
[377850357,1754575857869,-400.0,0.00019963,2]
[377850359,1754575857878,-400.0,0.00019963,2]
[377850361,1754575857888,-400.0,0.00019963,2]
[377850363,1754575857897,-401.41658595,0.00019963,2]
[377850365,1754575857906,-400.0,0.00019963,2]
[377850367,1754575857915,-518.09,0.00019963,2]
[377850369,1754575857925,-1124.85,0.00019963,2]
[377850371,1754575857935,-796.91,0.00019963,2]
[377850373,1754575857944,-151.0,0.00019963,2]
[377850375,1754575857954,-151.0,0.00019963,2]
[377850377,1754575857965,-400.0,0.00019963,2]
[377850379,1754575857974,-400.0,0.00019963,2]
[377850381,1754575857983,-356.44952292,0.00019963,2]
[377850383,1754575857993,-400.0,0.00019963,2]
[377850385,1754575858002,-400.0,0.00019963,2]
[377850387,1754575858015,-400.0,0.00019963,2]
[377850389,1754575858024,-619.43,0.00019963,2]
[377850391,1754575858034,-555.08,0.00019963,2]
[377850394,1754575858043,-400.0,0.00019963,2]
[377850396,1754575858053,-400.0,0.00019963,2]
[377850397,1754575858063,-400.0,0.00019963,2]
[377850399,1754575858072,-747.25,0.00019963,2]
[377850401,1754575858082,-400.0,0.00019963,7]
[377850403,1754575858092,-151.0,0.00019963,2]
[377850405,1754575858101,-151.0,0.00019963,2]
[377850407,1754575858112,-514.31828385,0.00019963,2]
[377850409,1754575858121,-467.12,0.00019963,2]
[377850411,1754575858130,-1498.14,0.00019963,2]
[377850412,1754575858139,-151.0,0.00019963,2]
[377850413,1754575858147,-739.4,0.00019963,2]
[377850414,1754575858155,-400.0,0.00019963,2]
[377850415,1754575858163,-400.0,0.00019963,2]
[377850416,1754575858172,-457.27,0.00019963,2]
[377850417,1754575858181,-583.48,0.00019963,2]
[377850418,1754575858189,-837.76,0.00019963,2]
[377850419,1754575858199,-423.09234179,0.00019963,2]
[377850420,1754575858208,-725.04,0.00019963,2]
[377850421,1754575858217,-402.98130433,0.00019963,2]
[377850422,1754575858227,-400.0,0.00019963,2]
[377850424,1754575858236,-933.37,0.00019963,2]
[377850426,1754575858246,-400.0,0.00019963,2]
[377850428,1754575858255,-400.0,0.00019963,2]
[377850429,1754575858264,-400.0,0.00019963,2]
[377850431,1754575858273,-400.0,0.00019963,2]
[377850433,1754575858283,-979.0,0.00019963,2]
[377850436,1754575858293,-425.3,0.00019963,2]
[377850437,1754575858303,-276.68117297,0.00019963,2]
[377850439,1754575858316,-400.0,0.00019963,2]
[377850441,1754575858325,-400.0,0.00019963,2]
[377850443,1754575858334,-660.76,0.00019963,2]
[377850445,1754575858343,-400.0,0.00019963,2]
[377850447,1754575858352,-400.0,0.00019963,2]
[377850449,1754575858363,-1274.9,0.00019963,2]
[377850451,1754575858372,-300.0,0.00019963,2]
[377850453,1754575858381,-400.0,0.00019963,2]
[377850455,1754575858390,-400.0,0.00019963,2]
[377850457,1754575858399,-400.0,0.00019963,2]
[377850459,1754575858409,-400.0,0.00019963,2]
[377850461,1754575858418,-400.0,0.00019963,2]
[377850463,1754575858427,-400.0,0.00019963,2]
[377850465,1754575858438,-400.0,0.00019963,2]
[377850467,1754575858448,-400.0,0.00019963,2]
[377850469,1754575858457,-400.0,0.00019963,2]
[377850471,1754575858464,-1598.77,0.00019963,2]
[377850473,1754575858472,-400.0,0.00019963,2]
[377850475,1754575858481,-400.0,0.00019963,2]
[377850477,1754575858490,-400.0,0.00019963,2]
[377850479,1754575858499,-400.0,0.00019963,2]
[377850481,1754575858508,-1180.53,0.00019963,2]
[377850483,1754575858517,-400.0,0.00019963,2]
[377850485,1754575858526,-400.0,0.00019963,2]
[377850486,1754575858534,-390.76074249,0.00019963,2]
[377850488,1754575858544,-1042.91,0.00019963,2]
[377850490,1754575858553,-1209.85,0.00019963,2]
[377850492,1754575858562,-400.0,0.00019963,2]
[377850494,1754575858571,-400.0,0.00019963,2]
[377850496,1754575858580,-151.0,0.00019963,2]
[377850498,1754575858590,-151.0,0.00019963,2]
[377850501,1754575858599,-400.0,0.00019963,2]
[377850502,1754575858608,-151.0,0.00019963,2]
[377850505,1754575858617,-400.0,0.00019963,2]
[377850507,1754575858627,-296.634418,0.00019963,2]
[377850508,1754575858636,-400.0,0.00019963,2]
[377850510,1754575858645,-400.0,0.00019963,2]
[377850512,1754575858654,-400.0,0.00019963,2]
[377850514,1754575858664,-643.83,0.00019963,2]
[377850516,1754575858672,-400.0,0.00019963,2]
[377850518,1754575858681,-400.0,0.00019963,2]
[377850520,1754575858690,-400.0,0.00019963,2]
[377850522,1754575858702,-400.0,0.00019963,2]
[377850524,1754575858712,-400.0,0.00019963,2]
[377850526,1754575858722,-1281.77,0.00019963,2]
[377850528,1754575858731,-1530.71,0.00019963,2]
[377850530,1754575858740,-405.45229141,0.00019963,2]
[377850532,1754575858749,-752.36,0.00019963,2]
[377850534,1754575858758,-400.0,0.00019963,2]
[377850536,1754575858767,-440.81,0.00019963,2]
[377850538,1754575858776,-158.577895,0.00019963,2]
[377850540,1754575858785,-151.0,0.00019963,2]
[377850542,1754575858795,-994.4,0.00019963,2]
[377850544,1754575858803,-151.0,0.00019963,2]
[377850546,1754575858812,-159.892084,0.00019963,2]
[377850548,1754575858821,-400.0,0.00019963,2]
[377850550,1754575858831,-479.95,0.00019963,2]
[377850552,1754575858840,-308.97820053,0.00019963,2]
[377850554,1754575858850,-594.29,0.00019963,2]
[377850556,1754575858859,-400.0,0.00019963,2]
[377850558,1754575858868,-3452.75,0.00019963,2]
[377850560,1754575858877,-400.0,0.00019963,2]
[377850562,1754575858886,-1180.02,0.00019963,2]
[377850564,1754575858895,-1090.91,0.00019963,2]
[377850566,1754575858905,-940.48,0.00019963,2]
[377850568,1754575858914,-151.0,0.00019963,2]
[377850570,1754575858924,-151.0,0.00019963,2]
[377850572,1754575858933,-1459.82,0.00019963,2]
[377850574,1754575858943,-400.0,0.00019963,2]
[377850576,1754575858951,-400.0,0.00019963,2]
[377850578,1754575858961,-400.0,0.00019963,2]
[377850580,1754575858970,-400.0,0.00019963,2]
[377850582,1754575858980,-400.0,0.00019963,2]
[377850584,1754575858990,-400.0,0.00019963,2]
[377850586,1754575858999,-400.0,0.00019963,2]
[377850588,1754575859012,-1598.3,0.00019963,2]
[377850590,1754575859021,-704.32,0.00019963,2]
[377850591,1754575859031,-792.97,0.00019963,2]
[377850594,1754575859040,-400.0,0.00019963,2]
[377850596,1754575859051,-823.95,0.00019963,2]
[377850598,1754575859060,-400.0,0.00019963,2]
[377850600,1754575859070,-163.703054,0.00019963,2]
[377850601,1754575859079,-588.17,0.00019963,2]
[377850604,1754575859090,-400.0,0.00019963,2]
[377850606,1754575859099,-400.0,0.00019963,2]
[377850608,1754575859109,-595.26,0.00019963,2]
[377850610,1754575859118,-400.0,0.00019963,2]
[377850611,1754575859127,-151.0,0.00019963,2]
[377850613,1754575859136,-151.0,0.00019963,2]
[377850616,1754575859146,-400.0,0.00019963,2]
[377850617,1754575859155,-151.0,0.00019963,2]
[377850620,1754575859165,-242.83466531,0.00019963,2]
[377850622,1754575859174,-151.0,0.00019963,2]
[377850624,1754575859183,-868.54,0.00019963,2]
[377850626,1754575859193,-151.0,0.00019963,2]
[377850627,1754575859202,-400.0,0.00019963,2]
[377850629,1754575859211,-986.87,0.00019963,2]
[377850632,1754575859221,-400.0,0.00019963,2]
[377850634,1754575859231,-400.0,0.00019963,2]
[377850635,1754575859240,-458.13,0.00019963,2]
[377850638,1754575859249,-151.0,0.00019963,2]
[377850639,1754575859258,-151.0,0.00019963,2]
[377850642,1754575859268,-400.0,0.00019963,2]
[377850643,1754575859277,-481.46,0.00019963,2]
[377850645,1754575859287,-1597.25,0.00019963,2]
[377850647,1754575859296,-1496.33,0.00019963,2]
[377850649,1754575859305,-400.0,0.00019963,2]
[377850652,1754575859315,-770.078293,0.00019963,2]
[377850654,1754575859324,-770.078293,0.00019963,2]
[377850656,1754575859334,-400.0,0.00019963,2]
[377850657,1754575859343,-770.078293,0.00019963,2]
[377850660,1754575859352,-770.078293,0.00019963,2]
[377850661,1754575859363,-400.0,0.00019963,2]
[377850663,1754575859372,-151.0,0.00019963,2]
[377850665,1754575859381,-151.0,0.00019963,2]
[377850667,1754575859391,-766.27,0.00019963,2]
[377850669,1754575859400,-400.0,0.00019963,2]
[377850671,1754575859410,-771.06,0.00019963,2]
[377850674,1754575859419,-400.0,0.00019963,2]
[377850676,1754575859429,-977.77,0.00019963,2]
[377850677,1754575859440,-533.23,0.00019963,2]
[377850680,1754575859450,-500.0,0.00019963,2]
[377850681,1754575859459,-1624.89,0.00019963,2]
[377850684,1754575859469,-579.87,0.00019963,2]
[377850685,1754575859479,-1261.99,0.00019963,2]
[377850688,1754575859488,-901.17,0.00019963,2]
[377850690,1754575859498,-407.71,0.00019963,2]
[377850692,1754575859507,-400.0,0.00019963,2]
[377850694,1754575859516,-400.0,0.00019963,2]
[377850696,1754575859526,-151.0,0.00019963,2]
[377850698,1754575859535,-400.0,0.00019963,2]
[377850700,1754575859545,-400.0,0.00019963,2]
[377850702,1754575859554,-400.0,0.00019963,2]
[377850703,1754575859564,-400.0,0.00019963,2]
[377850706,1754575859573,-169.194829,0.00019963,2]
[377850708,1754575859583,-416.67,0.00019963,2]
[377850710,1754575859592,-667.34,0.00019963,2]
[377850712,1754575859602,-400.0,0.00019963,2]
[377850714,1754575859612,-2061.57,0.00019963,2]
[377850716,1754575859622,-1495.59,0.00019963,2]
[377850718,1754575859631,-400.0,0.00019963,2]
[377850719,1754575859641,-635.13,0.00019963,2]
[377850721,1754575859650,-400.0,0.00019963,2]
[377850723,1754575859659,-1432.2,0.00019963,2]
[377850726,1754575859670,-400.0,0.00019963,2]
[377850728,1754575859679,-1874.32,0.00019963,2]
[377850730,1754575859688,-1486.52,0.00019963,2]
[377850732,1754575859697,-500.0,0.00019963,2]
[377850734,1754575859707,-692.64,0.00019963,2]
[377850736,1754575859716,-400.0,0.00019963,2]
[377850737,1754575859726,-400.0,0.00019963,2]
[377850740,1754575859735,-1828.1,0.00019963,2]
[377850742,1754575859745,-400.0,0.00019963,2]
[377850744,1754575859754,-945.92,0.00019963,2]
[377850745,1754575859763,-615.23,0.00019963,2]
[377850748,1754575859773,-1697.38,0.00019963,2]
[377850749,1754575859782,-400.0,0.00019963,2]
[377850751,1754575859791,-515.76,0.00019963,2]
[377850754,1754575859801,-400.0,0.00019963,2]
[377850756,1754575859810,-400.0,0.00019963,2]
[377850757,1754575859820,-2152.11,0.00019963,2]
[377850760,1754575859829,-400.0,0.00019963,2]
[377850761,1754575859839,-500.0,0.00019963,2]
[377850764,1754575859849,-468.53,0.00019963,2]
[377850766,1754575859859,-400.0,0.00019963,2]
[377850767,1754575859868,-400.0,0.00019963,2]
[377850769,1754575859878,-400.0,0.00019963,2]
[377850771,1754575859887,-881.05,0.00019963,2]
[377850773,1754575859896,-748.98,0.00019963,2]
[377850775,1754575859906,-2510.23,0.00019963,2]
[377850777,1754575859915,-1749.2,0.00019963,2]
[377850779,1754575859924,-400.0,0.00019963,2]
[377850781,1754575859934,-525.74,0.00019963,2]
[377850783,1754575859943,-1348.58,0.00019963,2]
[377850785,1754575859952,-940.11,0.00019963,2]
[377850787,1754575859961,-1459.54,0.00019963,2]
[377850789,1754575859971,-566.76,0.00019963,2]
[377850791,1754575859979,-2668.31,0.00019963,2]
[377850793,1754575859989,-895.83,0.00019963,2]
[377850794,1754575859998,-759.42,0.00019963,2]
[377850795,1754575860011,-433.04,0.00019963,2]
[377850796,1754575860020,-400.0,0.00019963,2]
[377850797,1754575860030,-400.0,0.00019963,2]
[377850798,1754575860039,-2322.09,0.00019963,2]
[377850799,1754575860050,-2492.77,0.00019963,2]
[377850800,1754575860059,-400.0,0.00019963,2]
[377850801,1754575860069,-204.215483,0.00019963,2]
[377850802,1754575860079,-204.215483,0.00019963,2]
[377850804,1754575860089,-415.38,0.00019963,2]
[377850806,1754575860099,-400.0,0.00019963,2]
[377850808,1754575860109,-204.215483,0.00019963,2]
[377850810,1754575860118,-204.215483,0.00019963,2]
[377850812,1754575860127,-400.0,0.00019963,2]
[377850814,1754575860137,-400.0,0.00019963,2]
[377850816,1754575860146,-1901.82,0.00019963,2]
[377850818,1754575860155,-1800.17,0.00019963,2]
[377850820,1754575860164,-527.86,0.00019963,2]
[377850822,1754575860173,-500.0,0.00019963,2]
[377850824,1754575860184,-400.0,0.00019963,2]
[377850826,1754575860193,-400.0,0.00019963,2]
[377850828,1754575860203,-400.0,0.00019963,2]
[377850830,1754575860212,-400.0,0.00019964,2]
[377850832,1754575860222,-402.09393317,0.00019964,2]
[377850834,1754575860232,-403.09887124,0.00019964,2]
[377850836,1754575860243,-23.58741527,0.00019964,2]
[377850925,1754575861235,-376.41258473,0.00019964,2]
[377850927,1754575861245,-400.0,0.00019964,2]
[377850928,1754575861255,-400.0,0.00019964,2]
[377850930,1754575861264,-400.0,0.00019964,2]
[377850932,1754575861274,-400.0,0.00019964,2]
[377850934,1754575861284,-400.0,0.00019964,2]
[377850935,1754575861293,-400.0,0.00019964,2]
[377850937,1754575861302,-400.0,0.00019964,2]
[377850939,1754575861312,-400.0,0.00019964,2]
[377850941,1754575861321,-420.88577272,0.00019964,2]
[377850942,1754575861331,-400.0,0.00019964,2]
[377850944,1754575861341,-464.18574558,0.00019964,2]
[377850946,1754575861350,-400.0,0.00019964,2]
[377850947,1754575861359,-526.27338672,0.00019964,2]
[377850949,1754575861369,-400.0,0.00019964,2]
[377850951,1754575861378,-400.0,0.00019964,2]
[377850952,1754575861388,-400.0,0.00019964,2]
[377850954,1754575861397,-400.0,0.00019964,2]
[377850956,1754575861406,-400.0,0.00019964,2]
[377850957,1754575861415,-403.52628864,0.00019964,2]
[377850959,1754575861425,-543.57808266,0.00019964,2]
[377850961,1754575861435,-400.0,0.00019964,2]
[377850963,1754575861445,-411.92445809,0.00019964,2]
[377850964,1754575861454,-400.0,0.00019964,2]
[377850966,1754575861464,-151.0,0.00019964,2]
[377850968,1754575861473,-400.0,0.00019964,2]
[377850970,1754575861483,-151.0,0.00019964,2]
[377850971,1754575861493,-500.0,0.00019964,2]
[377850973,1754575861503,-151.0,0.00019964,2]
[377850975,1754575861512,-208.163502,0.00019964,2]
[377850977,1754575861522,-151.846374,0.00019964,2]
[377850978,1754575861532,-151.0,0.00019964,2]
[377850980,1754575861542,-500.0,0.00019964,2]
[377850982,1754575861552,-400.0,0.00019964,2]
[377850984,1754575861562,-152.548676,0.00019964,2]
[377850985,1754575861572,-151.0,0.00019964,2]
[377850987,1754575861583,-151.0,0.00019964,2]
[377850989,1754575861592,-400.0,0.00019964,2]
[377850990,1754575861602,-500.0,0.00019964,2]
[377850992,1754575861613,-1582.67,0.00019964,2]
[377850994,1754575861622,-919.86,0.00019964,2]
[377850996,1754575861632,-2433.72,0.00019964,2]
[377850998,1754575861642,-436.97,0.00019964,2]
[377851000,1754575861652,-151.0,0.00019964,2]
[377851002,1754575861662,-1918.05,0.00019964,2]
[377851004,1754575861672,-1949.86,0.00019964,2]
[377851006,1754575861682,-2304.05,0.00019964,2]
[377851008,1754575861691,-151.0,0.00019964,2]
[377851010,1754575861701,-1892.95,0.00019964,2]
[377851012,1754575861711,-151.0,0.00019964,2]
[377851014,1754575861721,-1262.0,0.00019964,2]
[377851016,1754575861731,-1543.58,0.00019964,2]
[377851018,1754575861740,-1638.72,0.00019964,2]
[377851020,1754575861750,-1560.21,0.00019964,2]
[377851022,1754575861761,-151.0,0.00019964,2]
[377851024,1754575861771,-989.3,0.00019964,2]
[377851026,1754575861782,-599.79844753,0.00019964,2]
[377851046,1754575862066,400.0,0.000177,6]
[377851047,1754575862207,-288.33,0.00018007,2]
[377851048,1754575862217,-121.67,0.00019178,2]
[377851049,1754575862229,-278.33,0.00019178,2]
[377851050,1754575862239,-38.61,0.00019906,2]
[377851063,1754575862392,-583.3,0.00019906,2]
[377851065,1754575862403,-270.09,0.00019906,2]
[377851067,1754575862413,-2804.75,0.00019963,2]
[377851069,1754575862422,-786.85999998,0.00019964,2]
[377851103,1754575862749,900.0,0.000178,6]
[377851136,1754575863067,-400.0,0.00019178,2]
[377851138,1754575863077,-400.0,0.00019452,2]